bitfinex-derivatives/quotes_BTCF0:USTF0_20210105
["timestamp","ask_amount","ask_price","bid_price","bid_amount"]
[1609879654873,0.10482,33975.0,33969.0,0.2725]
[1609879655676,0.13632608,33970.0,33969.0,0.2725]
[1609879658080,0.10174,33983.0,33969.0,0.2725]
[1609879658281,0.09203,33995.0,33969.0,0.2725]
[1609879658682,0.00905658,34014.0,33969.0,0.2725]
[1609879659284,1.0,34001.0,33984.0,1.0]
[1609879659683,1.0,34001.0,33995.0,0.13632608]
[1609879661286,1.0,34003.0,33995.0,0.13632608]
[1609879661687,0.13632608,33996.0,33995.0,0.13632608]
[1609879661887,0.23350608,33996.0,33995.0,0.13632608]
[1609879663788,0.23350608,33996.0,33987.0,1.0]
[1609879665392,0.23350608,33996.0,33983.0,1.0]
[1609879665592,0.13632608,33984.0,33983.0,1.0]
[1609879667801,0.09718,33996.0,33983.0,1.0]
[1609879667996,1.0,34000.0,33983.0,1.0]
[1609879669098,0.8186,34000.0,33983.0,1.0]
[1609879669300,0.27,34029.0,33999.0,1.0]
[1609879669500,0.01790988,34030.0,33982.0,0.13632608]
[1609879669700,1.24145634,34049.0,33977.0,0.12874]
[1609879669701,0.53199031,34041.0,34018.0,0.13632608]
[1609879671104,0.46677321,34047.0,34018.0,0.13632608]
[1609879671302,0.46677321,34047.0,34018.0,0.0545606]
[1609879671503,1.0,34029.0,34018.0,0.0545606]
[1609879671704,0.27631608,34019.0,34018.0,0.0545606]
[1609879675510,0.27631608,34019.0,34018.0,1.0545606]
[1609879676509,0.27631608,34019.0,34018.0,1.0]
[1609879677513,0.27631608,34019.0,33997.0,2.0579756]
[1609879677711,0.13999,34019.0,34001.0,0.13632608]
[1609879677911,0.0881,34033.0,34001.0,0.13632608]
[1609879679111,0.0881,34033.0,33997.0,2.0579756]
[1609879679311,0.20288,34033.0,33997.0,2.0579756]
[1609879679712,0.13632608,33998.0,33997.0,2.0579756]
[1609879682717,0.13632608,33998.0,33996.0,2.06871998]
[1609879683318,0.13632608,33998.0,33973.0,2.08744429]
[1609879683519,1.0,33997.0,33973.0,2.08744429]
[1609879683720,0.13632608,33978.0,33973.0,2.08744429]
[1609879685422,0.13632608,33978.0,33972.0,0.13632608]
[1609879685622,0.13632608,33978.0,33977.0,0.13632608]
[1609879686124,0.1503,33994.0,33977.0,0.13632608]
[1609879687424,1.0,33993.0,33977.0,0.13632608]
[1609879687623,1.0,33993.0,33983.0,0.13632608]
[1609879689428,0.1503,33994.0,33983.0,0.13632608]
[1609879689627,0.13632608,33984.0,33983.0,0.13632608]
[1609879690229,0.13632608,33984.0,33975.0,0.10497]
[1609879691329,0.13632608,33984.0,33971.0,2.09224062]
[1609879691531,0.13632608,33984.0,33971.0,3.09224062]
[1609879691731,1.0,33988.0,33982.0,0.13632608]
[1609879692329,1.0,33988.0,33976.0,0.11405]
[1609879693532,1.0,33980.0,33971.0,2.09224062]
[1609879693741,0.13632608,33972.0,33971.0,2.09224062]
[1609879693938,0.13632608,33972.0,33970.0,2.27742861]
[1609879694733,0.13632608,33972.0,33963.0,1.0]
[1609879695534,0.13632608,33972.0,33951.0,2.12297209]
[1609879695734,0.13632608,33952.0,33951.0,2.12297209]
[1609879695940,0.13632608,33952.0,33948.0,2.2611857]
[1609879696336,0.13374,33958.0,33948.0,2.2611857]
[1609879696736,0.13374,33958.0,33948.0,0.13632608]
[1609879697136,0.14575,33966.0,33948.0,0.13632608]
[1609879697337,0.14575,33966.0,33953.0,2.1199597]
[1609879697535,1.0,33959.0,33953.0,2.1199597]
[1609879697735,0.13632608,33954.0,33953.0,2.1199597]
[1609879698637,0.13632608,33954.0,33946.0,2.13995087]
[1609879699037,0.13632608,33954.0,33942.0,3.31828011]
[1609879699240,0.13632608,33954.0,33944.0,2.14104217]
[1609879699437,1.0,33950.0,33944.0,2.14104217]
[1609879699838,1.1251,33950.0,33946.0,0.13632608]
[1609879700438,1.1251,33950.0,33943.0,2.14156489]
[1609879700838,4.866,33944.0,33943.0,2.14156489]
[1609879701041,4.866,33944.0,33939.0,2.14181461]
[1609879701438,5.866,33944.0,33939.0,2.14181461]
[1609879701838,0.13632608,33940.0,33939.0,2.14181461]
[1609879702039,0.28178608,33940.0,33939.0,2.14181461]
[1609879702240,0.28178608,33940.0,33933.0,0.13632608]
[1609879703041,0.28178608,33940.0,33930.0,2.13355232]
[1609879703242,0.01051744,33940.0,33931.0,2.13319706]
[1609879703641,0.01051744,33940.0,33927.0,2.13399675]
[1609879703841,0.01051744,33940.0,33934.0,0.13632608]
[1609879705441,0.01051744,33940.0,33923.0,2.28327872]
[1609879705842,0.13632608,33934.0,33923.0,2.28327872]
[1609879706044,4.317,33933.0,33924.0,2.13412208]
[1609879706342,4.4298,33933.0,33924.0,2.13412208]
[1609879707144,4.4298,33933.0,33921.0,2.31196558]
[1609879707145,4.4298,33933.0,33921.0,2.13337844]
[1609879707543,0.5784,33924.0,33921.0,2.13337844]
[1609879707742,0.13632608,33922.0,33921.0,2.26970452]
[1609879708445,0.13632608,33922.0,33921.0,2.13337844]
[1609879708643,4.34832608,33922.0,33921.0,2.13337844]
[1609879709445,10.34832608,33922.0,33921.0,2.13337844]
[1609879710047,10.34832608,33922.0,33914.0,2.13493997]
[1609879710245,6.13632608,33922.0,33914.0,2.13493997]
[1609879710445,3.9895,33915.0,33914.0,2.13493997]
[1609879710845,4.1242,33915.0,33914.0,2.08823997]
[1609879711048,4.1242,33915.0,33914.0,2.07333997]
[1609879711247,4.1242,33915.0,33914.0,2.05843997]
[1609879711447,10.1242,33915.0,33914.0,1.99983997]
[1609879711850,10.26052608,33915.0,33880.0,2.31174681]
[1609879712248,6.27102608,33915.0,33880.0,2.13374681]
[1609879712449,4.2824,33893.0,33880.0,2.13374681]
[1609879712649,6.27102608,33915.0,33880.0,2.13374681]
[1609879713449,0.27102608,33915.0,33880.0,2.13374681]
[1609879713852,0.1347,33915.0,33894.0,0.13632608]
[1609879715255,0.2889,33920.0,33894.0,0.13632608]
[1609879715454,1.0,33910.0,33894.0,0.13632608]
[1609879715655,1.14985,33910.0,33894.0,0.13632608]
[1609879715854,0.13632608,33896.0,33894.0,0.13632608]
[1609879716054,0.13632608,33896.0,33893.0,1.09636]
[1609879716454,0.13632608,33896.0,33893.0,1.0]
[1609879717453,0.13632608,33896.0,33866.0,0.2726]
[1609879717654,4.33492608,33896.0,33866.0,0.2726]
[1609879717853,4.1986,33896.0,33872.0,0.13632608]
[1609879718053,4.1986,33896.0,33872.0,0.28377608]
[1609879719856,4.1986,33896.0,33883.0,0.13632608]
[1609879720057,0.13346,33902.0,33883.0,0.13632608]
[1609879721462,4.3302,33908.0,33883.0,0.13632608]
[1609879721860,0.13632608,33896.0,33895.0,0.13632608]
[1609879722561,0.13632608,33896.0,33881.0,0.13346]
[1609879723462,1.0,33890.0,33881.0,0.13346]
[1609879723862,1.0,33890.0,33885.0,0.13632608]
[1609879725362,0.47815366,33896.0,33885.0,0.13632608]
[1609879725763,0.13632608,33886.0,33885.0,0.13632608]
[1609879728669,0.47815366,33896.0,33885.0,0.13632608]
[1609879729869,0.47815366,33896.0,33892.0,0.13632608]
[1609879730269,0.4906,33895.0,33881.0,1.13346]
[1609879730470,4.9552,33891.0,33881.0,1.13346]
[1609879731372,1.0,33887.0,33881.0,0.13346]
[1609879731772,1.0,33887.0,33872.0,0.14745]
[1609879731974,0.13632608,33882.0,33872.0,0.14745]
[1609879732172,0.13632608,33882.0,33870.0,1.0]
[1609879733273,1.0,33887.0,33870.0,1.0]
[1609879733274,0.86463861,33887.0,33870.0,1.0]
[1609879733473,1.0,33882.0,33866.0,0.2726]
[1609879733678,4.9552,33891.0,33875.0,1.0]
[1609879733878,1.0,33892.0,33887.0,0.13632608]
[1609879734677,4.7592,33889.0,33887.0,0.13632608]
[1609879734977,4.7592,33889.0,33886.0,0.14281]
[1609879735876,0.13632608,33887.0,33886.0,0.14281]
[1609879737880,0.29538336,33895.0,33886.0,0.14281]
[1609879738080,0.29538336,33895.0,33886.0,0.27913608]
[1609879738381,0.29538336,33895.0,33891.0,0.13632608]
[1609879738583,0.15283702,33896.0,33886.0,0.27913608]
[1609879739786,0.15283702,33896.0,33895.0,6.0]
[1609879739984,0.15283702,33896.0,33895.0,6.28148608]
[1609879740388,0.13632608,33915.0,33895.0,6.28148608]
[1609879740785,3.5757,33927.0,33895.0,6.28148608]
[1609879740985,1.0,33929.0,33895.0,6.28148608]
[1609879741185,1.0,33929.0,33895.0,10.38328608]
[1609879741585,1.2703,33943.0,33926.0,1.0]
[1609879741786,1.0,33943.0,33926.0,1.0]
[1609879741986,0.13632608,33938.0,33936.0,0.13632608]
[1609879742389,1.0,33943.0,33936.0,0.13632608]
[1609879743691,1.0,33967.0,33942.0,1.0]
[1609879745592,1.0,33965.0,33948.0,1.0]
[1609879745993,0.13632608,33959.0,33956.0,0.13632608]
[1609879746193,0.13632608,33959.0,33948.0,1.0]
[1609879746399,3.7548,33953.0,33948.0,1.0]
[1609879746593,3.8719,33953.0,33948.0,1.0]
[1609879746794,0.1171,33953.0,33948.0,1.0]
[1609879747595,0.1171,33953.0,33952.0,1.0]
[1609879747793,1.09561,33969.0,33952.0,1.0]
[1609879747993,1.09561,33969.0,33958.0,0.13632608]
[1609879748596,1.09561,33969.0,33952.0,1.0]
[1609879749598,0.09561,33969.0,33944.0,4.2572]
[1609879749999,0.09561,33969.0,33966.0,0.13632608]
[1609879751001,4.7989,33990.0,33966.0,0.13632608]
[1609879751200,3.7799,33989.0,33966.0,0.13632608]
[1609879751401,0.9616,33983.0,33966.0,0.13632608]
[1609879751801,0.9616,33983.0,33952.0,0.09431]
[1609879752001,1.07132,33983.0,33957.0,0.13632608]
[1609879754006,1.07132,33983.0,33981.0,0.13632608]
[1609879754207,0.10972,33983.0,33981.0,0.13632608]
[1609879754806,0.10972,33983.0,33964.0,4.7995]
[1609879755006,0.10972,33983.0,33957.0,0.13666]
[1609879755608,0.10972,33983.0,33967.0,1.0]
[1609879756007,0.24604608,33983.0,33982.0,0.13632608]
[1609879756608,0.10972,33983.0,33982.0,0.13632608]
[1609879757010,1.0,33984.0,33982.0,0.13632608]
[1609879757613,4.1749,33998.0,33982.0,0.13632608]
[1609879758013,0.13632608,33983.0,33982.0,0.13632608]
[1609879758414,0.13632608,33983.0,33965.0,0.09316]
[1609879758817,0.13346,33986.0,33965.0,0.09316]
[1609879760015,0.13346,33986.0,33985.0,0.13632608]
[1609879760417,0.13346,33986.0,33965.0,0.09316]
[1609879761417,0.13346,33986.0,33962.0,4.3893]
[1609879761618,1.0,33979.0,33962.0,5.3893]
[1609879762019,1.0,33979.0,33978.0,0.13632608]
[1609879763619,0.13346,33986.0,33978.0,0.13632608]
[1609879764020,4.1749,33998.0,33985.0,0.13632608]
[1609879764421,4.1749,33998.0,33967.0,0.13332]
[1609879764922,4.292,33998.0,33967.0,0.13332]
[1609879765421,0.0873,33997.0,33962.0,4.3893]
[1609879765623,1.0,33972.0,33957.0,0.13666]
[1609879766029,1.14798,33972.0,33970.0,0.13632608]
[1609879766425,1.14798,33972.0,33955.0,1.0]
[1609879767223,3.993,33970.0,33955.0,1.0]
[1609879767624,1.0,33956.0,33933.0,3.4349]
[1609879767823,1.0,33956.0,33929.0,1.0]
[1609879767824,1.10071,33956.0,33929.0,1.0]
[1609879768025,1.10071,33956.0,33945.0,0.13632608]
[1609879769626,1.0,33951.0,33945.0,0.13632608]
[1609879770026,1.0,33951.0,33950.0,0.13632608]
[1609879770226,1.0,33951.0,33934.0,1.0]
[1609879771729,4.59421,33956.0,33927.0,0.2979]
[1609879771931,4.59421,33956.0,33916.0,4.5654]
[1609879771932,4.59421,33956.0,33919.0,0.13492]
[1609879772129,4.59421,33956.0,33931.0,0.13632608]
[1609879772631,0.10071,33956.0,33931.0,0.13632608]
[1609879772830,0.0888,33956.0,33931.0,0.13632608]
[1609879773031,3.3676,33944.0,33912.0,0.09752]
[1609879773231,3.47602,33944.0,33912.0,0.09752]
[1609879773634,1.0,33920.0,33912.0,0.09752]
[1609879774233,1.0,33920.0,33917.0,0.13632608]
[1609879777044,1.0,33920.0,33912.0,0.09752]
[1609879777538,0.13632608,33924.0,33912.0,0.09752]
[1609879777738,1.0,33920.0,33907.0,3.8918]
[1609879778138,1.14223,33920.0,33918.0,0.13632608]
[1609879780141,0.13632608,33919.0,33918.0,0.13632608]
[1609879781243,0.13632608,33919.0,33906.0,0.2829]
[1609879781648,1.13632608,33919.0,33906.0,0.2829]
[1609879782050,1.13632608,33919.0,33900.0,0.12194]
[1609879782251,0.13632608,33906.0,33900.0,0.12194]
[1609879782843,0.13632608,33906.0,33898.0,4.0729]
[1609879783044,0.13632608,33906.0,33896.0,1.0]
[1609879783646,1.0,33897.0,33889.0,0.2935]
[1609879784246,1.0,33897.0,33893.0,0.13632608]
[1609879784647,0.6324,33895.0,33893.0,0.13632608]
[1609879784849,0.6324,33895.0,33889.0,0.2935]
[1609879785048,0.6324,33895.0,33878.0,1.0]
[1609879785549,1.0,33889.0,33877.0,2.6302474]
[1609879785750,1.14466,33889.0,33869.0,1.2878]
[1609879786148,1.28098608,33889.0,33888.0,0.13632608]
[1609879787550,0.28098608,33889.0,33888.0,0.13632608]
[1609879787951,0.13632608,33889.0,33888.0,0.13632608]
[1609879791557,1.13632608,33889.0,33888.0,0.13632608]
[1609879796163,1.82452608,33889.0,33888.0,0.13632608]
[1609879797566,0.82452608,33889.0,33888.0,0.13632608]
[1609879798166,0.82452608,33889.0,33884.0,0.13632608]
[1609879798365,0.13632608,33889.0,33884.0,0.13632608]
[1609879798567,4.4996,33885.0,33884.0,0.13632608]
[1609879799570,5.4996,33885.0,33871.0,0.13498]
[1609879799769,1.0,33885.0,33852.0,1.0]
[1609879799970,3.9885,33872.0,33852.0,1.0]
[1609879800171,3.9885,33872.0,33871.0,0.13632608]
[1609879800371,0.09931,33879.0,33871.0,0.13632608]
[1609879800772,0.09931,33879.0,33876.0,3.7324]
[1609879801172,1.0,33885.0,33876.0,3.7324]
[1609879801572,0.01272171,33907.0,33884.0,1.0]
[1609879801971,0.01272171,33907.0,33884.0,1.09476]
[1609879802171,0.01272171,33907.0,33906.0,0.13632608]
[1609879803576,0.636262,33910.0,33906.0,0.13632608]
[1609879803776,0.636262,33910.0,33905.0,0.95290742]
[1609879804177,0.636262,33910.0,33908.0,1.13632608]
[1609879804579,1.13632608,33924.0,33908.0,1.13632608]
[1609879804580,1.52936497,33924.0,33908.0,1.13632608]
[1609879805178,1.0,33924.0,33908.0,1.13632608]
[1609879806177,1.0,33937.0,33923.0,0.13632608]
[1609879806578,1.0,33937.0,33924.0,3.6725]
[1609879808079,1.0,33926.0,33924.0,3.6725]
[1609879809083,1.0,33926.0,33923.0,0.13632608]
[1609879810184,0.13632608,33935.0,33923.0,0.13632608]
[1609879811383,0.13632608,33935.0,33924.0,0.5717]
[1609879811583,0.14879,33937.0,33924.0,0.5717]
[1609879811784,0.13339,33944.0,33924.0,0.5717]
[1609879812185,1.0,33932.0,33924.0,0.5717]
[1609879814387,1.0,33932.0,33931.0,0.13632608]
[1609879816292,1.13632608,33932.0,33931.0,0.13632608]
[1609879818194,0.13632608,33932.0,33931.0,0.13632608]
[1609879820193,1.13632608,33932.0,33931.0,0.13632608]
[1609879820594,1.13632608,33932.0,33913.0,0.11109]
[1609879820793,5.09432608,33932.0,33913.0,0.11109]
[1609879821395,1.13632608,33932.0,33909.0,1.0]
[1609879821593,4.7134,33924.0,33909.0,1.0]
[1609879822094,4.7134,33924.0,33895.0,4.6692]
[1609879822295,0.09485,33925.0,33906.0,0.13632608]
[1609879822497,4.2918,33915.0,33906.0,0.13632608]
[1609879822895,0.09485,33925.0,33884.0,0.09476]
[1609879823095,0.09485,33925.0,33898.0,3.5038]
[1609879823294,0.18435,33925.0,33898.0,3.5038]
[1609879823996,0.531,33923.0,33898.0,3.5038]
[1609879824195,1.0,33899.0,33884.0,0.09476]
[1609879824396,1.13632608,33899.0,33898.0,0.13632608]
[1609879824796,1.13632608,33899.0,33889.0,0.14623]
[1609879826098,1.0,33890.0,33889.0,0.14623]
[1609879826299,1.0,33890.0,33889.0,0.28255608]
[1609879830205,1.0,33902.0,33889.0,0.28255608]
[1609879830405,1.0,33902.0,33901.0,0.13632608]
[1609879831005,1.0,33902.0,33901.0,0.1404]
[1609879831406,4.6725,33902.0,33901.0,0.1404]
[1609879832005,4.6725,33902.0,33901.0,0.0246]
[1609879832206,3.6725,33902.0,33885.0,0.13902]
[1609879832405,0.77872608,33886.0,33885.0,0.13902]
[1609879833006,0.77872608,33886.0,33876.0,2.10345478]
[1609879834211,1.0,33877.0,33868.0,0.13632608]
[1609879834409,0.13632608,33869.0,33868.0,0.13632608]
[1609879835611,0.13632608,33869.0,33856.0,2.11185579]
[1609879835812,4.1284,33857.0,33856.0,2.11185579]
[1609879836213,5.1284,33857.0,33856.0,2.11185579]
[1609879836412,5.26472608,33857.0,33856.0,2.11185579]
[1609879838111,6.13632608,33857.0,33856.0,1.76415579]
[1609879839213,6.13632608,33857.0,33843.0,4.2547]
[1609879839414,6.13632608,33857.0,33841.0,2.29471283]
[1609879839914,6.13632608,33857.0,33823.0,2.28716834]
[1609879840113,4.0295,33849.0,33836.0,1.0]
[1609879840313,4.0295,33849.0,33848.0,0.13632608]
[1609879840814,4.0295,33849.0,33842.0,0.12475]
[1609879842314,0.13632608,33843.0,33842.0,0.12475]
[1609879844016,3.75312608,33843.0,33823.0,2.04691834]
[1609879844217,1.63632608,33843.0,33818.0,0.2889]
[1609879844417,4.26482608,33819.0,33812.0,2.25809473]
[1609879844619,0.13632608,33819.0,33812.0,2.25809473]
[1609879844818,0.0881,33818.0,33812.0,2.25809473]
[1609879845018,0.0881,33818.0,33773.0,2.62589606]
[1609879845617,3.9761,33803.0,33773.0,2.62589606]
[1609879845817,3.9761,33803.0,33753.0,4.8921]
[1609879846217,1.0,33802.0,33785.0,1.0]
[1609879846417,0.13632608,33786.0,33785.0,1.0]
[1609879847718,0.61582608,33786.0,33785.0,1.0]
[1609879848119,6.61582608,33786.0,33753.0,4.7211]
[1609879848317,6.4795,33786.0,33762.0,0.13632608]
[1609879849118,6.0,33786.0,33762.0,0.13632608]
[1609879850219,1.0,33783.0,33766.0,1.0]
[1609879850820,4.3886,33773.0,33766.0,1.0]
[1609879852226,4.3886,33773.0,33739.0,3.947]
[1609879852422,0.13632608,33766.0,33765.0,0.13632608]
[1609879852622,0.13632608,33766.0,33739.0,3.947]
[1609879854425,0.13632608,33766.0,33762.0,0.13632608]
[1609879854627,0.09687,33778.0,33762.0,0.13632608]
[1609879854828,0.09687,33778.0,33762.0,0.25209608]
[1609879855828,0.03447,33788.0,33762.0,0.25209608]
[1609879856227,4.8828,33789.0,33762.0,0.25209608]
[1609879856428,0.65096598,33805.0,33782.0,0.13632608]
[1609879857430,0.12993,33805.0,33782.0,0.13632608]
[1609879857630,0.52147066,33811.0,33782.0,0.13632608]
[1609879858229,1.0,33794.0,33782.0,0.13632608]
[1609879858428,1.0,33794.0,33793.0,0.13632608]
[1609879859529,1.0,33794.0,33785.0,0.13378]
[1609879859731,5.8709,33794.0,33785.0,0.13378]
[1609879859931,1.0,33794.0,33777.0,1.0]
[1609879860130,6.0,33786.0,33750.0,1.0]
[1609879860329,6.14216,33786.0,33750.0,1.0]
[1609879860532,4.25612608,33763.0,33760.0,0.13632608]
[1609879860931,4.25612608,33763.0,33750.0,1.0]
[1609879862130,4.25612608,33763.0,33727.0,0.1771]
[1609879862532,0.11761,33771.0,33762.0,0.13632608]
[1609879863331,0.14216,33786.0,33762.0,0.13632608]
[1609879863732,4.2666,33774.0,33762.0,0.13632608]
[1609879864534,4.2666,33774.0,33770.0,0.13632608]
[1609879864934,0.11567,33779.0,33770.0,0.13632608]
[1609879865936,0.14216,33786.0,33770.0,0.23687608]
[1609879866136,0.14972,33798.0,33770.0,0.23687608]
[1609879866336,3.7677,33807.0,33770.0,0.23687608]
[1609879866536,0.5201903,33820.0,33793.0,0.13632608]
[1609879866735,3.9395,33817.0,33780.0,0.14193]
[1609879867136,0.51831689,33807.0,33780.0,0.14193]
[1609879867336,0.63708689,33807.0,33780.0,0.14193]
[1609879868137,1.0,33800.0,33783.0,1.0]
[1609879868537,1.0,33800.0,33799.0,0.13632608]
[1609879869138,0.6004,33800.0,33799.0,0.13632608]
[1609879869338,0.5473,33800.0,33799.0,0.13632608]
[1609879869538,0.63708689,33807.0,33799.0,0.13632608]
[1609879869738,3.7452,33802.0,33799.0,0.13632608]
[1609879870138,3.5358,33802.0,33799.0,0.13632608]
[1609879870548,0.13632608,33800.0,33795.0,0.14249]
[1609879870940,0.13632608,33800.0,33788.0,0.10135]
[1609879871139,0.25742608,33800.0,33780.0,0.14193]
[1609879871644,0.25742608,33800.0,33770.0,3.57865]
[1609879872445,0.13632608,33786.0,33785.0,0.13632608]
[1609879872847,0.1341,33792.0,33785.0,0.13632608]
[1609879874446,0.1341,33792.0,33791.0,0.13632608]
[1609879875357,0.1341,33792.0,33784.0,1.0]
[1609879875747,1.1341,33792.0,33770.0,0.10055]
[1609879875945,1.1341,33792.0,33767.0,1.0]
[1609879876545,1.1341,33792.0,33769.0,0.13632608]
[1609879876746,0.15003,33782.0,33769.0,0.13632608]
[1609879878448,0.15003,33782.0,33780.0,0.13632608]
[1609879878648,0.15003,33782.0,33770.0,0.0883]
[1609879878848,0.15003,33782.0,33771.0,0.0886]
[1609879879049,4.0973,33781.0,33763.0,0.11034]
[1609879879648,4.0973,33781.0,33769.0,1.0]
[1609879880048,0.15003,33782.0,33769.0,1.0]
[1609879880451,0.14603,33782.0,33781.0,0.13632608]
[1609879880949,0.98103,33786.0,33781.0,0.13632608]
[1609879881149,0.98003,33786.0,33781.0,0.13632608]
[1609879881350,0.1341,33792.0,33781.0,0.13632608]
[1609879881550,1.0,33795.0,33781.0,0.13632608]
[1609879882451,1.0,33795.0,33778.0,1.0]
[1609879882452,1.0,33795.0,33791.0,0.13632608]
[1609879883555,0.1211,33800.0,33791.0,0.13632608]
[1609879883855,1.0,33802.0,33791.0,0.13632608]
[1609879884254,1.0,33802.0,33785.0,1.0]
[1609879884455,0.13632608,33786.0,33785.0,1.0]
[1609879884654,0.26217608,33786.0,33785.0,1.0]
[1609879885656,0.26217608,33786.0,33763.0,0.11034]
[1609879886157,0.26217608,33786.0,33748.0,0.0886]
[1609879886558,0.12585,33786.0,33777.0,0.13632608]
[1609879887659,1.0,33781.0,33777.0,0.13632608]
[1609879888459,0.13632608,33778.0,33777.0,0.13632608]
[1609879889261,0.12895,33779.0,33777.0,0.13632608]
[1609879889662,0.01795,33779.0,33777.0,0.13632608]
[1609879892561,0.01795,33779.0,33767.0,1.0]
[1609879892762,3.90775,33779.0,33767.0,1.0]
[1609879893562,1.0,33768.0,33751.0,1.0]
[1609879894562,1.0,33768.0,33762.0,0.13632608]
[1609879895564,0.09827,33772.0,33762.0,0.13632608]
[1609879896565,0.09827,33772.0,33768.0,0.13632608]
[1609879898768,0.01795,33779.0,33768.0,0.13632608]
[1609879899368,0.13632608,33785.0,33768.0,0.13632608]
[1609879899568,0.13632608,33785.0,33773.0,1.0]
[1609879900567,0.42095058,33786.0,33781.0,0.13632608]
[1609879902671,0.13632608,33784.0,33777.0,0.13632608]
[1609879904471,0.13632608,33784.0,33764.0,2.14683275]
[1609879904671,0.42095058,33786.0,33772.0,0.13632608]
[1609879904972,0.42095058,33786.0,33772.0,0.22542608]
[1609879905573,1.0,33775.0,33772.0,0.22542608]
[1609879905875,1.13294,33775.0,33772.0,0.22542608]
[1609879906175,1.13294,33775.0,33772.0,0.13632608]
[1609879906574,0.13632608,33773.0,33772.0,0.13632608]
[1609879906774,1.13294,33775.0,33772.0,0.13632608]
[1609879907576,0.13294,33775.0,33772.0,0.13632608]
[1609879910882,0.13632608,33777.0,33772.0,0.13632608]
[1609879912685,0.13632608,33777.0,33776.0,0.13632608]
[1609879912884,1.0,33779.0,33776.0,0.13632608]
[1609879913684,0.42095058,33786.0,33776.0,0.13632608]
[1609879914687,4.18205058,33786.0,33783.0,0.13632608]
[1609879915887,0.42095058,33786.0,33783.0,0.13632608]
[1609879916588,0.13632608,33784.0,33783.0,0.13632608]
[1609879921297,0.42095058,33786.0,33783.0,0.13632608]
[1609879922698,0.55727666,33786.0,33783.0,0.13632608]
[1609879923599,0.42095058,33786.0,33783.0,0.13632608]
[1609879925000,0.42095058,33786.0,33784.0,0.0892]
[1609879925401,0.42095058,33786.0,33783.0,0.13632608]
[1609879925602,0.21245058,33786.0,33783.0,1.13632608]
[1609879926405,0.07455058,33786.0,33783.0,1.13632608]
[1609879927505,0.07455058,33786.0,33785.0,1.0]
[1609879927905,0.07455058,33786.0,33785.0,1.13829]
[1609879928106,0.13632608,33800.0,33785.0,1.13829]
[1609879928306,1.0,33806.0,33785.0,1.13829]
[1609879928706,1.13632608,33806.0,33805.0,0.13632608]
[1609879929510,0.13632608,33806.0,33805.0,0.13632608]
[1609879930511,0.13632608,33806.0,33791.0,1.0]
[1609879930712,0.10315,33807.0,33791.0,1.0]
[1609879931111,1.0,33808.0,33791.0,1.0]
[1609879932812,1.0,33808.0,33800.0,0.13632608]
[1609879933614,1.0,33807.0,33800.0,0.13632608]
[1609879933916,1.10014,33807.0,33800.0,0.13632608]
[1609879934916,1.10014,33807.0,33806.0,0.13632608]
[1609879935617,0.10014,33807.0,33806.0,0.13632608]
[1609879937018,0.13632608,33815.0,33806.0,0.13632608]
[1609879938922,1.0,33819.0,33811.0,0.13632608]
[1609879939524,0.01825749,33820.0,33811.0,0.13632608]
[1609879939924,0.01825749,33820.0,33792.0,0.14433]
[1609879940124,4.7916,33813.0,33792.0,0.14433]
[1609879940323,4.90116,33813.0,33785.0,2.50866832]
[1609879940724,4.90116,33813.0,33785.0,2.41996832]
[1609879940924,4.90116,33813.0,33795.0,0.13632608]
[1609879941526,1.0,33797.0,33795.0,0.13632608]
[1609879941926,1.13004,33797.0,33795.0,0.13632608]
[1609879942828,0.13632608,33796.0,33795.0,0.13632608]
[1609879948833,0.13632608,33796.0,33777.0,2.11128431]
[1609879949034,3.70522608,33796.0,33777.0,2.11128431]
[1609879949434,0.30221029,33796.0,33777.0,2.11128431]
[1609879949635,4.1234,33780.0,33777.0,2.11128431]
[1609879950234,4.25407,33780.0,33777.0,2.11128431]
[1609879950635,0.13067,33780.0,33777.0,2.11128431]
[1609879950835,0.13632608,33778.0,33777.0,2.11128431]
[1609879951235,0.13632608,33778.0,33777.0,2.00648431]
[1609879951634,6.13632608,33778.0,33777.0,1.57328431]
[1609879952236,6.13632608,33778.0,33772.0,2.29049269]
[1609879952837,0.13632608,33773.0,33772.0,2.29049269]
[1609879953037,0.28509608,33773.0,33772.0,2.29049269]
[1609879954038,0.28509608,33773.0,33751.0,4.8035]
[1609879954940,0.14877,33773.0,33754.0,0.13632608]
[1609879956944,0.13632608,33763.0,33759.0,0.13632608]
[1609879960953,0.14877,33773.0,33759.0,0.13632608]
[1609879961154,4.86427,33780.0,33759.0,0.13632608]
[1609879961552,1.0,33774.0,33759.0,0.13632608]
[1609879962352,1.0,33774.0,33760.0,4.3523]
[1609879962953,1.0,33774.0,33770.0,0.13632608]
[1609879963554,0.13067,33780.0,33770.0,0.13632608]
[1609879963753,1.13067,33780.0,33770.0,0.13632608]
[1609879964955,1.13067,33780.0,33778.0,0.13632608]
[1609879965755,3.4523,33779.0,33778.0,0.13632608]
[1609879966557,1.13067,33780.0,33778.0,0.13632608]
[1609879966957,0.13632608,33779.0,33778.0,0.13632608]
[1609879967357,1.13067,33780.0,33778.0,0.13632608]
[1609879967557,0.13067,33780.0,33778.0,0.13632608]
[1609879967758,1.0,33789.0,33778.0,0.13632608]
[1609879968957,1.0,33789.0,33788.0,0.13632608]
[1609879969157,1.0,33789.0,33774.0,4.14917]
[1609879969559,1.0,33787.0,33774.0,0.09127]
[1609879970760,1.0,33787.0,33777.0,4.1158]
[1609879970960,1.0,33787.0,33786.0,0.13632608]
[1609879971562,0.09099,33789.0,33786.0,0.81012608]
[1609879972162,0.16588421,33796.0,33786.0,0.81012608]
[1609879972964,0.16588421,33796.0,33795.0,0.13632608]
[1609879976966,0.16588421,33796.0,33791.0,0.13632608]
[1609879977567,1.0,33794.0,33791.0,0.13632608]
[1609879978967,0.13632608,33792.0,33791.0,0.13632608]
[1609879985579,1.13632608,33792.0,33791.0,0.13632608]
[1609879991586,0.13632608,33792.0,33791.0,0.13632608]
[1609879992487,1.0,33794.0,33791.0,0.74982608]